bitfinex-derivatives/quotes_ETHF0:USTF0_20241008
["timestamp","ask_amount","ask_price","bid_price","bid_amount"]
[1728380341330,0.4118,2428.8,2428.6,0.41181]
[1728380341520,1.48,2428.7,2428.6,0.41181]
[1728380341720,1.8913,2428.7,2428.6,0.41181]
[1728380342823,1.83629,2429.0,2428.9,0.41177]
[1728380342824,1.21865,2429.0,2428.9,0.41177]
[1728380343019,2.2869,2429.0,2428.9,0.41177]
[1728380343217,6.4037,2429.0,2428.9,0.41177]
[1728380344225,1.02942,2428.9,2428.5,0.41182]
[1728380344426,1.48,2428.7,2428.6,0.41181]
[1728380344930,1.872,2428.7,2428.6,0.41181]
[1728380347326,2.2838,2428.7,2428.6,0.41181]
[1728380347634,1.872,2428.7,2428.6,0.41181]
[1728380350129,2.2838,2428.7,2428.6,0.41181]
[1728380350331,0.41182,2428.6,2428.5,0.41182]
[1728380350629,3.38441393,2428.6,2428.0,0.096]
[1728380350832,1.8919,2428.1,2428.0,0.4002]
[1728380351033,0.41193,2428.0,2427.8,0.41195]
[1728380351328,1.48,2427.9,2427.8,0.41195]
[1728380351729,1.8688,2428.0,2427.9,0.41194]
[1728380358344,0.41194,2427.9,2427.2,1.0301]
[1728380358530,3.2078,2427.8,2427.7,0.41196]
[1728380358736,1.48,2427.8,2427.7,0.41196]
[1728380359136,0.8198,2427.9,2427.5,0.401]
[1728380359333,1.48,2427.8,2427.7,0.41195]
[1728380364343,1.89195,2427.8,2427.7,0.41195]
[1728380364641,1.48,2427.8,2427.7,0.41195]
[1728380365836,1.89195,2427.8,2427.7,0.41195]
[1728380366238,1.48,2427.8,2427.7,0.41195]
[1728380367240,1.48,2427.8,2427.5,0.401]
[1728380367440,1.89199,2427.6,2427.5,0.81299]
[1728380367642,1.89199,2427.6,2427.5,0.41199]
[1728380368838,1.48,2427.6,2427.5,0.41199]
[1728380369445,2.3173,2427.6,2427.5,0.41199]
[1728380369853,1.8945,2427.6,2427.5,0.41199]
[1728380373149,1.89197,2427.7,2427.6,0.41199]
[1728380373352,4.6878,2427.8,2427.7,0.41197]
[1728380373953,1.48,2427.8,2427.7,0.41197]
[1728380374457,1.48,2427.8,2427.7,0.82717]
[1728380380351,1.48,2427.8,2427.7,0.41197]
[1728380385346,1.8913,2427.8,2427.7,0.41197]
[1728380391854,5.0991,2427.8,2427.7,0.41197]
[1728380398567,5.51105,2427.8,2427.7,0.41197]
[1728380398760,5.0991,2427.8,2427.7,0.41197]
[1728380399664,1.8913,2427.8,2427.7,0.41197]
[1728380401568,1.48,2427.8,2427.7,0.41197]
[1728380402066,0.096,2428.1,2428.0,0.41192]
[1728380402262,1.48,2428.1,2428.0,0.41192]
[1728380402462,1.8919,2428.1,2428.0,0.41192]
[1728380402768,1.8919,2428.1,2427.9,0.4114]
[1728380402966,1.48,2428.0,2427.9,0.41192]
[1728380404070,0.41194,2427.9,2427.8,0.41195]
[1728380404274,2.71424,2427.9,2427.7,0.82336]
[1728380404472,0.417,2427.8,2427.7,0.82336]
[1728380405965,1.48,2427.9,2427.8,0.41195]
[1728380413282,4.6878,2427.9,2427.7,0.4114]
[1728380413480,0.41199,2427.6,2427.0,1.53246494]
[1728380413687,1.48,2427.3,2427.2,1.61375]
[1728380415880,1.48,2427.3,2427.2,5.73375]
[1728380416490,1.48,2427.3,2427.2,1.61375]
[1728380421688,1.48,2427.5,2427.2,5.3217]
[1728380421890,1.48,2427.5,2427.4,0.41202]
[1728380422785,1.892,2427.5,2427.4,0.41202]
[1728380422987,1.48,2427.5,2427.4,0.41202]
[1728380423188,1.892,2427.5,2427.4,0.41202]
[1728380423690,1.48,2427.5,2427.4,0.41202]
[1728380428796,3.2078,2427.6,2427.5,0.412]
[1728380428996,4.6878,2427.6,2427.5,0.412]
[1728380430393,0.413,2427.7,2427.3,1.03009]
[1728380430589,1.48,2427.8,2427.3,1.48]
[1728380430791,1.48,2428.0,2427.5,4.6878]
[1728380431094,0.9126,2428.1,2428.0,0.41192]
[1728380431095,1.576,2428.1,2428.0,0.41192]
[1728380431299,1.48,2428.1,2428.0,0.41192]
[1728380431489,0.3974,2428.2,2427.7,1.02993]
[1728380431693,0.3974,2428.2,2428.1,0.4119]
[1728380432797,3.6052,2428.2,2428.1,0.4119]
[1728380432997,5.0852,2428.2,2428.1,0.4119]
[1728380436896,5.4711,2428.2,2428.1,0.4119]
[1728380439706,2.2633,2428.2,2428.1,0.4119]
[1728380440398,5.4711,2428.2,2428.1,0.4119]
[1728380443099,0.41192,2428.1,2427.9,0.41193]
[1728380443303,1.89192,2428.0,2427.9,0.41193]
[1728380443603,1.89193,2428.0,2427.7,0.4208]
[1728380443903,1.48,2427.8,2427.7,0.41197]
[1728380444311,1.894,2427.8,2427.7,0.41197]
[1728380451011,5.1018,2427.8,2427.7,0.41197]
[1728380451909,5.51375,2427.8,2427.7,0.41197]
[1728380452109,5.1018,2427.8,2427.7,0.41197]
[1728380454112,5.51375,2427.8,2427.7,0.41197]
[1728380454700,5.1018,2427.8,2427.7,0.41197]
[1728380455006,0.41197,2427.7,2427.6,0.41198]
[1728380455315,2.31627,2427.7,2427.6,0.41198]
[1728380456209,1.9043,2427.7,2427.6,0.41198]
[1728380456698,6.0235,2427.7,2427.5,0.4208]
[1728380456898,2.31628,2427.7,2427.5,0.4208]
[1728380457105,2.31628,2427.7,2427.6,0.41199]
[1728380457309,1.9043,2427.7,2427.6,0.41199]
[1728380457611,2.31627,2427.7,2427.6,0.41199]
[1728380458105,1.9043,2427.7,2427.6,0.41199]
[1728380462615,2.317,2427.7,2427.6,0.41199]
[1728380463103,5.5248,2427.7,2427.6,0.41199]
[1728380464108,5.1121,2427.7,2427.6,0.41199]
[1728380465213,4.6878,2427.7,2427.6,0.41199]
[1728380467520,5.09977,2427.7,2427.6,0.41199]
[1728380467811,4.6878,2427.7,2427.6,0.41199]
[1728380468017,5.09977,2427.7,2427.6,0.41199]
[1728380468218,0.41199,2427.6,2427.5,0.83279]
[1728380468417,5.09978,2427.7,2427.6,0.41199]
[1728380469821,4.6878,2427.7,2427.5,0.4208]
[1728380470018,0.41199,2427.6,2427.5,0.8328]
[1728380470222,5.09978,2427.7,2427.5,0.8328]
[1728380471016,4.6878,2427.7,2427.5,0.8328]
[1728380471216,5.09978,2427.7,2427.5,0.8328]
[1728380472013,4.6878,2427.7,2427.5,0.8328]
[1728380472220,5.09978,2427.7,2427.5,0.8328]
[1728380473018,0.41199,2427.6,2427.5,0.8328]
[1728380473522,4.6878,2427.7,2427.5,0.8328]
[1728380473718,5.09978,2427.7,2427.5,0.8328]
[1728380474219,5.09978,2427.7,2427.5,0.4208]
[1728380474423,5.09978,2427.7,2427.6,0.41199]
[1728380474919,5.09978,2427.7,2427.5,0.83279]
[1728380475424,0.41199,2427.6,2427.5,0.83279]
[1728380475923,5.09978,2427.7,2427.5,0.83279]
[1728380476120,5.35011795,2427.7,2427.5,0.83279]
[1728380476519,4.6878,2427.7,2427.6,0.41199]
[1728380476721,41.21191,2428.1,2427.6,4.53119]
[1728380476927,1.48,2427.9,2427.8,0.41195]
[1728380477130,1.48,2427.9,2427.8,0.80575]
[1728380479536,1.48,2427.9,2427.8,4.92495]
[1728380480031,1.48,2427.9,2427.8,0.80575]
[1728380482125,1.48,2427.9,2427.8,4.92495]
[1728380483032,1.48,2427.9,2427.8,0.80575]
[1728380485531,1.48,2427.9,2427.8,4.92495]
[1728380486828,1.48,2427.9,2427.8,0.80575]
[1728380487028,1.48,2427.9,2427.8,4.92495]
[1728380489033,4.6878,2428.1,2427.8,4.513]
[1728380489230,4.6878,2428.1,2428.0,0.41192]
[1728380492642,5.0997,2428.1,2428.0,0.41192]
[1728380498344,4.6878,2428.1,2428.0,0.41192]
[1728380498635,5.0997,2428.1,2428.0,0.41192]
[1728380498843,5.0997,2428.1,2427.5,0.412]
[1728380498844,0.41199,2427.7,2427.5,0.412]
[1728380499036,3.10499,2427.6,2427.3,0.4189]
[1728380499340,1.48,2427.4,2427.3,0.83094]
[1728380507049,3.2078,2427.4,2427.0,0.50226494]
[1728380507256,1.89207,2427.1,2427.0,0.50226494]
[1728380508145,0.41207,2427.1,2427.0,0.50226494]
[1728380508345,1.89207,2427.1,2427.0,0.50226494]
[1728380508947,1.48,2427.1,2427.0,0.91435494]
[1728380509153,1.89207,2427.1,2427.0,0.50226494]
[1728380510748,5.09987,2427.1,2427.0,0.50226494]
[1728380511347,9.21987,2427.1,2427.0,0.46677785]
[1728380512255,14.8078,2427.1,2426.5,0.41217]
[1728380512555,1.48,2426.6,2426.5,0.41216]
[1728380512954,2.3151,2426.6,2426.5,0.41216]
[1728380517250,1.8884,2426.6,2426.5,0.41216]
[1728380517853,4.135,2427.2,2426.8,0.41212]
[1728380518047,1.8972,2427.1,2427.0,0.41209]
[1728380518448,1.48,2427.1,2427.0,0.41209]
[1728380524256,1.48,2427.1,2426.6,0.8113]
[1728380524459,3.6199,2427.0,2426.8,0.41212]
[1728380524754,0.3866,2426.9,2426.8,0.41212]
[1728380525051,1.8666,2426.9,2426.8,0.41212]
[1728380525253,1.18634,2427.3,2427.2,0.41205]
[1728380525552,1.8666,2427.3,2427.2,0.41205]
[1728380530157,1.8666,2427.3,2427.1,0.41206]
[1728380530158,2.27865,2427.3,2427.1,0.41206]
[1728380530359,1.48,2427.2,2427.1,0.41206]
[1728380530956,0.41209,2427.0,2426.7,0.3912]
[1728380531255,0.41215,2426.7,2426.5,0.41217]
[1728380531460,1.8697,2426.6,2426.5,0.41217]
[1728380532156,1.8697,2426.6,2426.3,0.3912]
[1728380532460,1.48,2426.4,2426.3,0.80341]
[1728380532657,1.48,2426.4,2426.3,1.22661]
[1728380535762,1.48,2426.6,2426.3,5.96651]
[1728380535961,1.48,2426.6,2426.5,0.41217]
[1728380536561,1.48,2426.7,2426.5,4.1208]
[1728380536757,1.48,2426.7,2426.6,0.41216]
[1728380537255,1.48,2426.7,2426.6,4.53296]
[1728380539065,1.48,2426.7,2426.6,0.41216]
[1728380543160,1.48,2426.7,2426.3,0.8144]
[1728380543368,1.48,2426.4,2426.3,1.22661]
[1728380544465,1.48,2426.4,2426.3,5.34821]
[1728380544671,1.48,2426.4,2426.3,1.22661]
[1728380546570,1.89219,2426.4,2426.3,0.83541]
[1728380547266,1.48,2426.4,2426.0,0.8197]
[1728380547469,0.41221,2426.3,2426.2,0.41221]
[1728380547673,1.85166,2426.5,2426.0,0.7885]
[1728380547874,0.41221,2426.3,2426.2,0.41221]
[1728380548371,3.63221,2426.3,2426.2,0.41221]
[1728380549168,3.22,2426.3,2426.2,0.41221]
[1728380549367,3.63221,2426.3,2426.0,0.7885]
[1728380549572,3.63221,2426.3,2426.1,0.41223]
[1728380549772,3.63221,2426.3,2426.0,0.7885]
[1728380551273,3.63222,2426.3,2426.0,0.7885]
[1728380551467,0.41221,2426.3,2426.1,0.41224]
[1728380551668,3.22,2426.2,2426.1,0.41224]
[1728380555070,3.63222,2426.2,2426.1,0.41224]
[1728380555671,3.22,2426.2,2426.1,0.41224]
[1728380557476,3.63224,2426.2,2426.0,0.79845]
[1728380557681,0.832,2426.1,2426.0,0.79845]
[1728380558273,0.832,2426.1,2425.9,0.41228]
[1728380558469,1.24425,2426.1,2425.9,0.41228]
[1728380558677,3.22,2426.0,2425.9,0.41228]
[1728380561676,3.63226,2426.0,2425.9,0.41228]
[1728380562684,4.03366,2426.0,2425.9,0.41228]
[1728380563676,4.03366,2426.0,2425.7,0.3892]
[1728380563879,4.03366,2426.0,2425.9,0.41228]
[1728380564284,3.6214,2426.0,2425.7,0.3892]
[1728380564583,3.6214,2426.0,2425.7,0.8015]
[1728380564584,3.63229,2425.8,2425.7,0.8015]
[1728380564774,3.22,2425.8,2425.7,0.8015]
[1728380564980,3.22,2425.8,2425.5,3.2078]
[1728380565186,0.8058,2425.7,2425.6,0.41233]
[1728380565879,1.21811,2425.7,2425.6,0.41233]
[1728380566087,0.8058,2425.7,2425.6,0.41233]
[1728380567183,1.2123,2425.7,2425.6,0.41233]
[1728380568480,2.7023,2425.7,2425.6,0.41233]
[1728380569979,3.11461,2425.7,2425.6,0.41233]
[1728380570171,2.7023,2425.7,2425.6,0.41233]
[1728380571786,3.11461,2425.7,2425.6,0.41233]
[1728380571988,2.7023,2425.7,2425.6,0.41233]
[1728380573986,3.11461,2425.7,2425.6,0.41233]
[1728380574190,2.7023,2425.7,2425.6,0.41233]
[1728380574693,2.303,2425.7,2425.6,0.41233]
[1728380574986,3.2078,2425.9,2425.6,0.41233]
[1728380575187,4.6978,2425.9,2425.8,0.41229]
[1728380575581,4.6978,2425.9,2425.8,1.22619]
[1728380578593,4.6978,2425.9,2425.8,0.81319]
[1728380578794,5.11008,2425.9,2425.8,0.81319]
[1728380578993,5.11008,2425.9,2425.8,0.4009]
[1728380579389,5.11008,2425.9,2425.8,0.81319]
[1728380579587,4.6978,2425.9,2425.8,0.81319]
[1728380580790,5.11008,2425.9,2425.7,0.4014]
[1728380580992,2.2967,2425.8,2425.7,0.41231]
[1728380581298,1.8844,2425.8,2425.7,0.41231]
[1728380581499,3.2078,2425.9,2425.5,0.3915]
[1728380581698,3.2078,2425.9,2425.8,0.41229]
[1728380582702,4.6978,2425.9,2425.8,0.41229]
[1728380585400,5.11009,2425.9,2425.7,0.4123]
[1728380585595,1.49,2425.8,2425.7,0.4123]
[1728380585786,2.295,2425.8,2425.6,0.41231]
[1728380585993,1.8969,2425.7,2425.6,0.41231]
[1728380590119,1.49,2425.7,2425.6,0.41231]
[1728380596916,4.6978,2425.9,2425.8,0.41229]
[1728380597513,4.6978,2425.9,2425.8,0.82389]
[1728380601117,0.4882,2426.2,2426.1,0.41224]
[1728380601421,1.8822,2426.2,2426.1,0.41224]
[1728380602517,1.49,2426.2,2426.1,0.41224]
[1728380605723,3.6146,2426.4,2426.3,0.41221]
[1728380606018,5.1046,2426.4,2426.3,0.41221]
[1728380606718,5.1046,2426.4,2426.3,0.80331]
[1728380608725,1.271,2426.8,2426.7,0.41214]
[1728380608726,3.3038,2426.8,2426.7,0.41214]
[1728380608929,4.6978,2426.8,2426.7,0.41214]
[1728380613325,1.49,2426.8,2426.7,0.41214]
[1728380613828,4.6978,2426.8,2426.7,0.41214]
[1728380614624,5.10992,2426.8,2426.7,0.41214]
[1728380614826,4.6978,2426.8,2426.7,0.41214]
[1728380615825,8.8186,2426.8,2426.4,1.03046]
[1728380616020,1.49,2426.5,2426.3,1.42162]
[1728380616220,1.49,2426.5,2426.3,0.80331]
[1728380616221,0.7928,2426.4,2426.3,0.80331]
[1728380618126,1.2045,2426.4,2426.3,0.80331]
[1728380622732,0.4038,2426.4,2425.8,1.03072]
[1728380622927,1.49,2425.9,2425.8,1.242]
[1728380623130,1.49,2425.9,2425.8,1.24559]
[1728380623330,0.846,2426.3,2425.8,4.9557]
[1728380623536,1.49,2426.1,2426.0,0.41226]
[1728380627544,1.49,2426.2,2426.1,0.41224]
[1728380627748,0.4038,2426.4,2426.0,1.03065]
[1728380627935,0.3488095,2426.7,2426.6,0.41216]
[1728380627936,0.096,2426.7,2426.6,0.41216]
[1728380628137,3.61986,2427.2,2427.0,0.41209]
[1728380628138,1.49,2427.1,2427.0,0.41209]
[1728380637255,5.1164,2427.2,2427.1,0.41207]
[1728380637843,3.2078,2427.6,2427.5,0.412]
[1728380638048,4.0518,2427.6,2427.5,0.412]
[1728380638244,5.5418,2427.6,2427.5,0.412]
[1728380639050,3.2078,2427.6,2427.5,0.412]
[1728380642054,4.6978,2427.6,2427.5,0.412]
[1728380642259,0.41202,2427.4,2427.3,0.41203]
[1728380642557,1.49,2427.4,2427.3,0.41203]
[1728380642761,1.90202,2427.4,2427.3,0.41203]
[1728380643148,1.49,2427.4,2427.3,0.41203]
[1728380644358,0.4177,2427.5,2427.0,1.86491]
[1728380644663,0.4177,2427.5,2427.4,0.41202]
[1728380646967,0.8297,2427.5,2427.4,0.41202]
[1728380647963,0.4177,2427.5,2427.4,0.41202]
[1728380648758,3.6265,2427.6,2427.5,0.412]
[1728380649065,3.2078,2427.6,2427.5,0.412]
[1728380649365,1.21255,2427.9,2427.8,0.41195]
[1728380649366,0.4009,2427.9,2427.8,0.41195]
[1728380649659,5.192,2428.2,2427.7,1.02993]
[1728380649860,0.48452129,2428.1,2428.0,0.41192]
[1728380650068,0.4845206,2428.1,2428.0,0.41192]
[1728380650460,0.4204,2428.1,2428.0,0.41192]
[1728380651358,3.22,2428.2,2427.8,1.1943]
[1728380651554,0.41189,2428.2,2428.0,0.41191]
[1728380651867,3.22,2428.0,2427.9,0.41192]
[1728380654058,3.6073,2428.0,2427.9,0.41192]
[1728380654264,4.01922,2428.0,2427.9,0.41192]
[1728380654758,3.6073,2428.0,2427.6,0.4075]
[1728380654966,0.4195,2427.9,2427.6,0.4075]
[1728380655163,0.4195,2427.9,2427.8,0.41195]
[1728380655967,0.83144,2427.9,2427.8,0.41195]
[1728380656165,0.83145,2427.9,2427.7,0.41196]
[1728380657856,0.83145,2427.9,2427.5,0.3899]
[1728380658063,0.83145,2427.9,2427.7,0.41195]
[1728380660274,0.4195,2427.9,2427.5,0.3899]
[1728380660469,3.61976,2427.8,2427.6,0.41197]
[1728380660669,3.61976,2427.8,2427.5,0.3899]
[1728380660970,0.4186,2427.7,2427.5,0.3899]
[1728380661176,0.4186,2427.7,2427.6,0.41199]
[1728380664367,1.48,2427.8,2427.5,0.3899]
[1728380664573,1.48,2427.8,2427.7,0.41197]
[1728380667969,1.21882,2428.0,2427.7,0.41197]
[1728380667970,3.2078,2428.1,2428.0,0.41192]
[1728380668371,1.48,2428.2,2428.1,0.4119]
[1728380669274,4.6878,2428.2,2428.1,0.4119]
[1728380670266,5.09968,2428.2,2428.1,0.4119]
[1728380670583,4.6878,2428.2,2428.1,0.4119]
[1728380671571,3.2078,2428.2,2428.1,0.4119]
[1728380671773,1.48,2428.2,2427.9,0.4012]
[1728380672073,1.48,2428.2,2428.1,0.4119]
[1728380676873,4.6878,2428.2,2428.1,0.4119]
[1728380678482,1.48,2428.2,2428.1,0.4119]
[1728380681476,4.6878,2428.2,2428.1,0.4119]
[1728380685481,1.48,2428.2,2428.1,0.4119]
[1728380685983,5.09968,2428.2,2428.1,0.4119]
[1728380688174,4.6878,2428.2,2428.1,0.4119]
[1728380688680,5.09968,2428.2,2428.1,0.4119]
[1728380689274,1.89188,2428.2,2428.1,0.4119]
[1728380691284,1.48,2428.2,2428.1,0.4119]
[1728380692286,1.89188,2428.2,2428.1,0.4119]
[1728380693885,1.48,2428.2,2428.1,0.4119]
[1728380695277,1.89188,2428.2,2428.1,0.4119]
[1728380696585,3.9934,2428.3,2428.2,0.41188]
[1728380696787,1.98783,2428.6,2428.0,1.0298]
[1728380696984,3.10963,2428.6,2428.4,0.41184]
[1728380697689,0.41183,2428.5,2428.4,0.41184]
[1728380699982,0.41183,2428.5,2428.3,0.41186]
[1728380700186,1.48,2428.4,2428.3,0.41186]
[1728380700382,5.09965,2428.4,2428.3,0.41186]
[1728380700590,4.6878,2428.4,2428.3,0.41186]
[1728380701088,1.48,2428.4,2428.3,0.41186]
[1728380707694,0.25253222,2428.7,2428.3,11.5984]
[1728380707989,0.096,2428.8,2428.7,0.4118]
[1728380708191,3.2078,2428.9,2428.8,0.41178]
[1728380708590,0.24866927,2429.2,2429.0,0.41175]
[1728380708891,1.877,2429.3,2429.1,0.41172]
[1728380709092,0.06408687,2429.2,2429.1,0.41172]
[1728380709494,0.06408687,2429.2,2428.8,1.48]
[1728380709495,4.75188687,2429.2,2428.7,1.2275]
[1728380709699,1.48,2429.0,2428.7,1.2275]
[1728380709891,0.397,2428.9,2428.7,1.63928]
[1728380710294,0.397,2428.9,2428.8,0.41178]
[1728380710796,0.397,2428.9,2428.7,1.2275]
[1728380710996,0.397,2428.9,2428.7,1.63928]
[1728380711493,0.397,2428.9,2428.8,0.41178]
[1728380713896,0.80877,2428.9,2428.8,0.41178]
[1728380714291,0.397,2428.9,2428.8,0.41178]
[1728380717501,0.397,2428.9,2428.7,1.2275]
[1728380717704,5.09958,2428.8,2428.7,0.4215]
[1728380717903,9.2141,2428.8,2428.1,0.096]
[1728380718198,1.48,2428.2,2428.0,0.41191]
[1728380718405,0.4132,2428.1,2428.0,0.41191]
[1728380733401,0.41192,2428.0,2427.9,0.79803]
[1728380733598,4.02652,2428.0,2427.9,0.41193]
[1728380734404,3.6146,2428.0,2427.9,0.41193]
[1728380734607,0.4132,2428.1,2428.0,0.41192]
[1728380736706,0.4132,2428.1,2427.7,0.8495]
[1728380737008,3.2078,2428.0,2427.9,0.41192]
[1728380737600,3.61972,2428.0,2427.9,0.41192]
[1728380738013,0.41192,2428.0,2427.9,0.41192]
[1728380739308,0.41192,2428.0,2427.8,0.41194]
[1728380739506,0.4051,2427.9,2427.8,0.41194]
[1728380742709,0.4051,2427.9,2427.7,1.89196]
[1728380742906,0.4164,2427.8,2427.7,0.41196]
[1728380744210,5.51615,2427.8,2427.7,0.41196]
[1728380744412,0.41197,2427.7,2427.6,0.3882]
[1728380744603,2.91654,2427.7,2427.3,0.41203]
[1728380744806,4.6878,2427.5,2427.3,0.4041]
[1728380745013,0.82842,2427.4,2427.3,0.4041]
[1728380745304,0.41206,2427.2,2427.0,0.41209]
[1728380745617,4.6878,2427.2,2426.8,0.4041]
[1728380745805,5.09986,2427.2,2427.0,0.41208]
[1728380746010,5.48816,2427.2,2427.0,0.41208]
[1728380746614,3.5961,2427.2,2427.0,0.41208]
[1728380746815,4.00815,2427.2,2427.0,0.41208]
[1728380748817,3.5961,2427.2,2426.8,0.4041]
[1728380749013,4.00816,2427.2,2427.0,0.41208]
[1728380749612,4.00816,2427.2,2427.1,0.41207]
[1728380750013,4.26006983,2427.2,2427.1,0.41207]
[1728380750415,3.84800983,2427.2,2427.1,0.41207]
[1728380750611,3.5961,2427.2,2427.1,0.41207]
[1728380752619,0.096,2427.5,2427.4,0.41202]
[1728380752817,4.9393,2427.8,2427.7,0.41197]
[1728380753117,0.8043,2427.8,2427.7,0.41197]
[1728380753913,1.21626,2427.8,2427.6,0.41198]
[1728380754521,0.8043,2427.8,2427.3,4.2501]
[1728380755123,1.21625,2427.8,2427.6,0.41198]
[1728380755824,1.21625,2427.8,2427.3,4.2501]
[1728380756023,1.21625,2427.8,2427.7,0.41197]
[1728380757113,1.21625,2427.8,2427.3,4.2501]
[1728380757321,0.8043,2427.8,2427.2,1.2311]
[1728380757522,1.21626,2427.8,2427.6,0.41197]
[1728380760021,0.8043,2427.8,2427.2,1.2311]
[1728380760221,0.8043,2427.8,2427.2,2.26123]
[1728380760424,0.8043,2427.8,2427.6,0.41198]
[1728380760623,0.41197,2427.7,2427.6,0.41198]
[1728380761019,0.8043,2427.8,2427.2,1.2311]
[1728380761216,3.22,2427.5,2427.4,0.41202]
[1728380761417,3.22,2427.5,2426.8,0.096]
[1728380761614,3.2078,2427.3,2426.9,1.1909]
[1728380761818,6.83984,2427.3,2427.1,0.41206]
[1728380762016,0.4209,2427.2,2427.1,0.41206]
[1728380762824,4.5409,2427.2,2426.9,0.3882]
[1728380763026,3.2078,2427.0,2426.6,0.4111]
[1728380763318,3.63212,2426.9,2426.6,1.21145]
[1728380763622,4.02642,2426.9,2426.6,0.7993]
[1728380763931,4.02642,2426.9,2426.7,0.41213]
[1728380764120,3.6143,2426.9,2426.7,0.41213]
[1728380765119,4.02641,2426.9,2426.7,0.41213]
[1728380765329,3.6143,2426.9,2426.7,0.41213]
[1728380765514,0.41212,2426.8,2426.6,1.21145]
[1728380766137,3.6143,2426.9,2426.6,0.7993]
[1728380766420,4.02642,2426.9,2426.7,0.41213]
[1728380767023,0.41213,2426.8,2426.6,1.21145]
[1728380767328,4.02641,2426.9,2426.7,0.41213]
[1728380767627,0.41213,2426.8,2426.6,1.21145]
[1728380767816,0.41213,2426.8,2426.6,0.7993]
[1728380768018,3.6143,2426.9,2426.7,0.41214]
[1728380768214,0.41213,2426.8,2426.6,1.21145]
[1728380768719,3.86666,2426.9,2426.6,0.80035]
[1728380768720,0.41214,2426.7,2426.6,0.80035]
[1728380768920,3.86666,2426.9,2426.6,0.80035]
[1728380769124,0.41214,2426.8,2426.6,0.80035]
[1728380769324,3.86666,2426.9,2426.6,0.3882]
[1728380769521,4.27877,2426.9,2426.7,0.41213]
[1728380769919,0.41213,2426.8,2426.7,0.41214]
[1728380770129,0.41213,2426.8,2426.6,0.3882]
[1728380770327,0.41213,2426.8,2426.6,0.80035]
[1728380772731,3.61993,2426.8,2426.6,0.80035]
[1728380775330,3.61993,2426.8,2426.7,0.41214]
[1728380777233,3.2078,2426.8,2426.7,0.41214]
[1728380777433,3.61992,2426.8,2426.7,0.41214]
[1728380778536,3.61992,2426.8,2426.6,0.80035]
[1728380778537,5.09992,2426.8,2426.6,0.80035]
[1728380778929,5.09992,2426.8,2426.6,0.3882]
[1728380779131,5.09992,2426.8,2426.7,0.41214]
[1728380779531,5.51202,2426.8,2426.7,0.41214]
[1728380779843,0.41214,2426.7,2426.6,0.80035]
[1728380780337,5.0999,2426.8,2426.6,0.80035]
[1728380780536,5.51203,2426.8,2426.6,0.80035]
[1728380781144,5.51203,2426.8,2426.7,0.41214]
[1728380781450,5.0999,2426.8,2426.7,0.41214]
[1728380782743,5.51202,2426.8,2426.7,0.41214]
[1728380783238,5.0999,2426.8,2426.7,0.41214]
[1728380784952,5.51202,2426.8,2426.7,0.41214]
[1728380785350,5.0999,2426.8,2426.7,0.41214]
[1728380786854,1.8921,2426.8,2426.7,0.41214]
[1728380787255,5.0999,2426.8,2426.7,0.41214]
[1728380787650,5.51202,2426.8,2426.7,0.41214]
[1728380788155,5.0999,2426.8,2426.7,0.41214]
[1728380788948,5.51202,2426.8,2426.6,0.3882]
[1728380789558,5.0999,2426.8,2426.7,0.41214]
[1728380790055,1.8921,2426.8,2426.7,0.41214]
[1728380790359,2.30422,2426.8,2426.7,0.41214]
[1728380792452,2.30422,2426.8,2426.6,0.80035]
[1728380794055,0.41214,2426.7,2426.6,0.3882]
[1728380796450,42.6921,2426.8,2426.3,0.8191]
[1728380796761,5.52347,2426.6,2426.4,0.80338]
[1728380797256,5.52347,2426.6,2426.5,0.41217]
[1728380797753,5.1113,2426.6,2426.4,0.80338]
[1728380797955,5.52347,2426.6,2426.4,0.80338]
[1728380798559,0.41217,2426.5,2426.4,0.80338]
[1728380798760,0.4022,2426.5,2426.4,0.80338]
[1728380800260,5.1113,2426.6,2426.5,0.41217]
[1728380800261,5.52346,2426.6,2426.5,0.41217]
[1728380801762,5.52346,2426.6,2426.4,0.80338]
[1728380802262,5.52346,2426.6,2426.5,0.41217]
[1728380802656,5.52346,2426.6,2426.4,0.80339]
[1728380803058,5.76693614,2426.6,2426.4,0.80339]
[1728380804868,5.76693614,2426.6,2426.4,0.3912]
[1728380805069,5.35477614,2426.6,2426.5,0.41217]
[1728380807870,5.76693614,2426.6,2426.5,0.41217]
[1728380808169,5.35477614,2426.6,2426.5,0.41217]
[1728380810270,5.35477614,2426.6,2426.4,0.3912]
[1728380810463,5.76694614,2426.6,2426.4,0.3912]
[1728380810768,5.76694614,2426.6,2426.5,0.41217]
[1728380811160,5.76694614,2426.6,2426.4,0.80338]
[1728380811362,5.76694614,2426.6,2426.4,0.3912]
[1728380811363,0.41217,2426.5,2426.4,0.3912]
[1728380811763,0.41217,2426.5,2426.4,0.80339]
[1728380812370,4.1216,2426.5,2425.9,3.3038]
[1728380812668,3.2078,2426.3,2426.2,0.41221]
[1728380813074,3.6231,2426.3,2426.2,0.41221]
[1728380814270,4.03531,2426.3,2426.2,0.41221]
[1728380814471,5.51531,2426.3,2426.2,0.41221]